Workbook

Sheet 읍면동별 세대 및 인구
A1: 여수시 읍면동별 세대 및 인구
A2: 작성기준 : 2019. 1. 31. 현재 | J2: (단위 : 세대, 명)
A3: ] | B3: 세대수1) | C3: 합 계 | F3: 한국인 | I3: 외국인
C4: 계 | D4: 남 | E4: 여 | F4: 계 | G4: 남 | H4: 여 | I4: 계 | J4: 남 | K4: 여
A5: 18년 12월말 | B5: 120,810 | C5: 287,868 | D5: 147,056 | E5: 140,812 | F5: 283,300 | G5: 143,802 | H5: 139,498 | I5: 4,568 | J5: 3,254 | K5: 1,314
A6: 19년 1월말 | B6: 120,810 | C6: =D6+E6 -> 287,849 | D6: =SUM(D7:D33) -> 147,039 | E6: =SUM(E7:E33) -> 140,810 | F6: =SUM(F7:F33) -> 283,300 | G6: =SUM(G7:G33) -> 143,802 | H6: =SUM(H7:H33) -> 139,498 | I6: =J6+K6 -> 4,549 | J6: =SUM(J7:J33) -> 3,237 | K6: =SUM(K7:K33) -> 1,312
A7: 돌산읍 | B7: 6,441 | C7: =SUM(D7:E7) -> 14,286 | D7: =SUM(G7+J7) -> 7,505 | E7: =SUM(H7+K7) -> 6,781 | F7: 13,562 | G7: 6,858 | H7: 6,704 | I7: =SUM(J7:K7) -> 724 | J7: 647 | K7: 77
A8: 소라면 | B8: 8,616 | C8: 21,239 | D8: =SUM(G8+J8) -> 10,743 | E8: =SUM(H8+K8) -> 10,496 | F8: 21,095 | G8: 10,698 | H8: 10,397 | I8: =SUM(J8:K8) -> 144 | J8: 45 | K8: 99
A9: 율촌면 | B9: 3,258 | C9: 6,749 | D9: 3,497 | E9: 3,252 | F9: 6,586 | G9: 3,377 | H9: 3,209 | I9: 163 | J9: 120 | K9: 43
A10: 화양면 | B10: 3,508 | C10: 6,917 | D10: 3,648 | E10: 3,269 | F10: 6,692 | G10: 3,464 | H10: 3,228 | I10: 225 | J10: 184 | K10: 41
A11: 남면 | B11: 1,712 | C11: 3,156 | D11: 1,643 | E11: 1,513 | F11: 3,038 | G11: 1,538 | H11: 1,500 | I11: 118 | J11: 105 | K11: 13
A12: 화정면 | B12: 1,269 | C12: 2,309 | D12: 1,150 | E12: 1,159 | F12: 2,250 | G12: 1,098 | H12: 1,152 | I12: 59 | J12: 52 | K12: 7
A13: 삼산면 | B13: 1,173 | C13: 2,184 | D13: 1,235 | E13: 949 | F13: 2,094 | G13: 1,155 | H13: 939 | I13: 90 | J13: 80 | K13: 10
A14: 동문동 | B14: 2,243 | C14: 4,205 | D14: 2,152 | E14: 2,053 | F14: 4,151 | G14: 2,115 | H14: 2,036 | I14: 54 | J14: 37 | K14: 17
A15: 한려동 | B15: 1,731 | C15: 3,268 | D15: 1,665 | E15: 1,603 | F15: 3,240 | G15: 1,654 | H15: 1,586 | I15: 28 | J15: 11 | K15: 17
A16: 중앙동 | B16: 2,411 | C16: 4,960 | D16: 2,495 | E16: 2,465 | F16: 4,854 | G16: 2,416 | H16: 2,438 | I16: 106 | J16: 79 | K16: 27
A17: 충무동 | B17: 2,257 | C17: 4,348 | D17: 2,254 | E17: 2,094 | F17: 4,300 | G17: 2,225 | H17: 2,075 | I17: 48 | J17: 29 | K17: 19
A18: 광림동 | B18: 3,215 | C18: 6,625 | D18: 3,415 | E18: 3,210 | F18: 6,572 | G18: 3,401 | H18: 3,171 | I18: 53 | J18: 14 | K18: 39
A19: 서강동 | B19: 1,903 | C19: 3,963 | D19: 1,985 | E19: 1,978 | F19: 3,932 | G19: 1,977 | H19: 1,955 | I19: 31 | J19: 8 | K19: 23
A20: 대교동 | B20: 3,087 | C20: 6,043 | D20: 3,212 | E20: 2,831 | F20: 5,751 | G20: 2,958 | H20: 2,793 | I20: 292 | J20: 254 | K20: 38
A21: 국동 | B21: 5,388 | C21: 12,809 | D21: 6,618 | E21: 6,191 | F21: 12,427 | G21: 6,287 | H21: 6,140 | I21: 382 | J21: 331 | K21: 51
A22: 월호동 | B22: 2,915 | C22: 7,734 | D22: 3,981 | E22: 3,753 | F22: 7,458 | G22: 3,730 | H22: 3,728 | I22: 276 | J22: 251 | K22: 25
A23: 여서동 | B23: 7,945 | C23: 20,549 | D23: 10,155 | E23: 10,394 | F23: 20,412 | G23: 10,091 | H23: 10,321 | I23: 137 | J23: 64 | K23: 73
A24: 문수동 | B24: 8,694 | C24: 21,001 | D24: 10,524 | E24: 10,477 | F24: 20,720 | G24: 10,350 | H24: 10,370 | I24: 281 | J24: 174 | K24: 107
A25: 미평동 | B25: 5,638 | C25: 12,701 | D25: 6,720 | E25: 5,981 | F25: 12,429 | G25: 6,520 | H25: 5,909 | I25: 272 | J25: 200 | K25: 72
A26: 둔덕동 | B26: 4,003 | C26: 11,030 | D26: 5,546 | E26: 5,484 | F26: 10,911 | G26: 5,494 | H26: 5,417 | I26: 119 | J26: 52 | K26: 67
A27: 만덕동 | B27: 4,182 | C27: 10,581 | D27: 5,293 | E27: 5,288 | F27: 10,423 | G27: 5,207 | H27: 5,216 | I27: 158 | J27: 86 | K27: 72
A28: 쌍봉동 | B28: 13,184 | C28: 34,553 | D28: 17,561 | E28: 16,992 | F28: 34,345 | G28: 17,464 | H28: 16,881 | I28: 208 | J28: 97 | K28: 111
A29: 시전동 | B29: 11,404 | C29: 31,598 | D29: 15,855 | E29: 15,743 | F29: 31,395 | G29: 15,749 | H29: 15,646 | I29: 203 | J29: 106 | K29: 97
A30: 여천동 | B30: 9,788 | C30: 22,490 | D30: 11,629 | E30: 10,861 | F30: 22,326 | G30: 11,579 | H30: 10,747 | I30: 164 | J30: 50 | K30: 114
A31: 주삼동 | B31: 2,983 | C31: 8,519 | D31: 4,347 | E31: 4,172 | F31: 8,458 | G31: 4,318 | H31: 4,140 | I31: 61 | J31: 29 | K31: 32
A32: 삼일동 | B32: 1,280 | C32: 2,793 | D32: 1,575 | E32: 1,218 | F32: 2,649 | G32: 1,444 | H32: 1,205 | I32: 144 | J32: 131 | K32: 13
A33: 묘도동 | B33: 582 | C33: 1,239 | D33: 636 | E33: 603 | F33: 1,230 | G33: 635 | H33: 595 | I33: 9 | J33: 1 | K33: 8
A34: 주 : 1) 세대수에는 외국인 세대 제외

Sheet 65세이상 인구(총괄)
A1: 65세이상 인구 현황(총괄)
A2: 작성기준 : 2019. 1. 31. 현재 | D2: (단위 : 명)
A3: 구 분 | B3: 계 | C3: 남 | D3: 여 | E3: 노령화 지수
A4: 2011년말 | B4: 37,830 | C4: 15,023 | D4: 22,807 | E4: 82.0
A5: 2012년말 | B5: 39,671 | C5: 15,929 | D5: 23,742 | E5: 89.4
A6: 2013년말 | B6: 41,369 | C6: 16,775 | D6: 24,594 | E6: 96.8
A7: 2014년말 | B7: 43,225 | C7: 17,752 | D7: 25,473 | E7: 105.4
A8: 2015년말 | B8: 44,997 | C8: 18,775 | D8: 26,222 | E8: 114.3
A9: 2016년말 | B9: 46,632 | C9: 19,720 | D9: 26,912 | E9: 121.8
A10: 2017년말 | B10: 48,569 | C10: 20,703 | D10: 27,866 | E10: 130.6
A11: 2018년말 | B11: 49,609 | C11: 21,259 | D11: 28,350 | E11: 139.0
A12: 2019년 1월말 | B12: =SUM(C12:D12) -> 49,704 | C12: 21,310 | D12: 28,394 | E12: =B12/35508*100 -> 140.0
A13: 자료 : 민원지적과
A14: 주 : 노령화 지수 = (65세이상인구 / 0~14세 인구) * 100
